bitfinex/quotes_BTCUSD_20250115
["timestamp","ask_amount","ask_price","bid_price","bid_amount"]
[1736972380184,0.10395807,100470.0,100460.0,8.58644487]
[1736972380302,0.10395807,100470.0,100460.0,8.69334487]
[1736972380952,0.10395807,100470.0,100460.0,8.68834487]
[1736972381166,0.10395807,100470.0,100460.0,8.81834487]
[1736972381742,0.10395807,100470.0,100460.0,3.89734487]
[1736972381960,0.10395807,100470.0,100460.0,8.82734487]
[1736972383584,0.10395807,100470.0,100460.0,8.83424487]
[1736972391190,2.10395807,100470.0,100460.0,8.83424487]
[1736972391411,2.10395807,100470.0,100460.0,8.82734487]
[1736972393609,2.18545807,100470.0,100460.0,8.72098487]
[1736972393812,2.18545807,100470.0,100460.0,8.39224487]
[1736972394073,2.18545807,100470.0,100460.0,7.85124487]
[1736972395421,2.18545807,100470.0,100460.0,7.74488487]
[1736972395606,2.23355807,100470.0,100460.0,4.24924487]
[1736972396025,2.22607807,100470.0,100460.0,4.24288487]
[1736972396236,2.22607807,100470.0,100460.0,4.24924487]
[1736972397042,2.22607807,100470.0,100460.0,4.24288487]
[1736972397250,2.22607807,100470.0,100460.0,4.24924487]
[1736972398959,2.22607807,100470.0,100460.0,3.19367299]
[1736972399369,2.22607807,100470.0,100460.0,3.18677299]
[1736972400263,2.22607807,100470.0,100460.0,3.27987299]
[1736972400463,2.22607807,100470.0,100460.0,3.28677299]
[1736972400464,2.09647807,100470.0,100460.0,3.28677299]
[1736972400671,2.06796563,100470.0,100460.0,3.28677299]
[1736972401670,2.06796563,100470.0,100460.0,3.27987299]
[1736972404961,2.06796563,100470.0,100460.0,3.18677299]
[1736972405119,2.06796563,100470.0,100460.0,3.18041299]
[1736972405336,2.06796563,100470.0,100460.0,3.18677299]
[1736972405753,2.06796563,100470.0,100460.0,3.05977299]
[1736972406566,2.06796563,100470.0,100460.0,3.05341299]
[1736972406784,2.06796563,100470.0,100460.0,3.05977299]
[1736972407336,2.06796563,100470.0,100460.0,3.05341299]
[1736972407553,2.15046563,100470.0,100460.0,3.05977299]
[1736972407766,2.15046563,100470.0,100460.0,3.05341299]
[1736972407970,2.15046563,100470.0,100460.0,3.05977299]
[1736972408179,2.1451323,100470.0,100460.0,3.05977299]
[1736972408387,2.1451323,100470.0,100460.0,2.98777299]
[1736972408587,2.1451323,100470.0,100460.0,2.73541299]
[1736972408821,2.1451323,100470.0,100460.0,2.74177299]
[1736972409752,2.1451323,100470.0,100460.0,2.73277299]
[1736972409990,2.1451323,100470.0,100460.0,2.74177299]
[1736972410201,2.1451323,100470.0,100460.0,2.73277299]
[1736972410412,2.1451323,100470.0,100460.0,2.72377299]
[1736972410619,2.1451323,100470.0,100460.0,2.73277299]
[1736972410813,2.1451323,100470.0,100460.0,2.73877299]
[1736972411349,2.1451323,100470.0,100460.0,2.73241299]
[1736972411565,1.9631023,100470.0,100460.0,5.37627299]
[1736972411773,1.92014808,100470.0,100460.0,9.16609672]
[1736972411985,1.33468069,100550.0,100540.0,0.6]
[1736972412210,0.42896642,100570.0,100560.0,1.25066483]
[1736972412211,0.26349115,100570.0,100560.0,1.25066483]
[1736972412428,0.16349115,100570.0,100560.0,2.55306271]
[1736972412859,0.07660833,100590.0,100580.0,0.5]
[1736972413068,0.1,100590.0,100580.0,4.05668188]
[1736972413283,0.10050183,100590.0,100580.0,3.2539088]
[1736972413489,0.10050183,100590.0,100580.0,3.02794188]
[1736972413704,0.10050183,100590.0,100580.0,3.12794188]
[1736972413904,0.00050183,100590.0,100580.0,4.1721688]
[1736972414325,0.00050183,100590.0,100580.0,4.1811688]
[1736972414940,0.00050183,100590.0,100580.0,4.3710148]
[1736972415138,0.00050183,100590.0,100580.0,4.06158188]
[1736972415278,0.42752783,100590.0,100580.0,3.12158188]
[1736972415498,0.32752783,100590.0,100580.0,3.12158188]
[1736972415704,0.32743813,100590.0,100580.0,3.12794188]
[1736972415900,0.32743813,100590.0,100580.0,3.13194188]
[1736972416322,0.32743813,100590.0,100580.0,3.14094188]
[1736972416518,0.43166505,100590.0,100580.0,2.66666701]
[1736972416725,0.43166505,100590.0,100580.0,0.37642924]
[1736972416726,0.33386505,100590.0,100580.0,0.37642924]
[1736972416926,0.33386505,100590.0,100520.0,0.75302822]
[1736972416927,0.298899,100560.0,100520.0,0.75302822]
[1736972417135,0.298935,100540.0,100530.0,0.50636]
[1736972417383,0.39787,100540.0,100530.0,1.08072156]
[1736972417588,0.39787,100540.0,100530.0,1.1373252]
[1736972417726,0.60209692,100540.0,100530.0,0.7373252]
[1736972417928,0.198945,100530.0,100520.0,0.15024364]
[1736972418129,0.40317192,100530.0,100520.0,0.16560364]
[1736972418533,0.40317192,100530.0,100520.0,0.15939431]
[1736972418736,0.40317192,100530.0,100520.0,0.16575431]
[1736972419123,0.40317192,100530.0,100520.0,0.16975431]
[1736972419325,0.40317192,100530.0,100520.0,0.21001431]
[1736972420006,0.40317192,100530.0,100520.0,0.20101431]
[1736972420204,0.40317192,100530.0,100520.0,0.14041067]
[1736972420429,0.40317192,100530.0,100520.0,0.14677067]
[1736972420633,0.40417192,100530.0,100520.0,0.14677067]
[1736972420851,0.40417192,100530.0,100520.0,0.19901431]
[1736972421291,0.40417192,100530.0,100520.0,0.14877067]
[1736972422158,0.40417192,100530.0,100520.0,0.19901431]
[1736972422821,0.41400083,100530.0,100520.0,0.19901431]
[1736972423552,0.41400083,100530.0,100520.0,0.29901431]
[1736972423553,0.199945,100530.0,100520.0,0.29901431]
[1736972423790,0.299945,100530.0,100520.0,0.59901431]
[1736972424207,0.199945,100530.0,100520.0,0.59901431]
[1736972424411,0.001,100530.0,100520.0,0.79797931]
[1736972424617,0.39795,100540.0,100530.0,0.2]
[1736972424835,0.39795,100540.0,100530.0,0.29050364]
[1736972425026,0.39795,100540.0,100530.0,0.33040364]
[1736972426264,0.39795,100540.0,100530.0,0.33219872]
[1736972426606,0.39795,100540.0,100530.0,0.33719872]
[1736972426806,0.3988048,100540.0,100530.0,0.33719872]
[1736972427436,0.50303172,100540.0,100530.0,0.23719872]
[1736972427664,0.50303172,100540.0,100530.0,0.34355872]
[1736972428085,0.60303172,100540.0,100530.0,0.24355872]
[1736972428730,0.60303172,100540.0,100530.0,0.23719872]
[1736972428980,0.50303172,100540.0,100530.0,0.23855872]
[1736972429176,0.50303172,100540.0,100530.0,0.23955872]
[1736972429915,0.60303172,100540.0,100530.0,0.19965872]
[1736972430347,0.50303172,100540.0,100530.0,0.19965872]
[1736972430546,0.1998698,100540.0,100530.0,0.49965872]
[1736972430954,0.2008698,100540.0,100530.0,0.49965872]
[1736972431577,0.1998698,100540.0,100530.0,0.49965872]
[1736972432116,0.30409672,100540.0,100530.0,0.49329872]
[1736972432342,0.30409672,100540.0,100530.0,0.49229872]
[1736972432537,0.30409672,100540.0,100530.0,0.50373872]
[1736972433166,0.30409672,100540.0,100530.0,0.49729872]
[1736972433374,0.30509672,100540.0,100530.0,0.19229872]
[1736972433583,0.30509672,100540.0,100530.0,0.19973872]
[1736972433896,0.40509672,100540.0,100530.0,0.19973872]
[1736972434097,0.40509672,100540.0,100530.0,0.19329872]
[1736972434297,0.40509672,100540.0,100530.0,0.19973872]
[1736972435980,0.40509672,100540.0,100530.0,0.19329872]
[1736972436181,0.40509672,100540.0,100530.0,0.19973872]
[1736972436431,0.41494841,100540.0,100530.0,0.19973872]
[1736972437649,0.31494841,100540.0,100530.0,0.19329872]
[1736972437862,0.398245,100530.0,100520.0,0.01784391]
[1736972438075,0.198985,100510.0,100500.0,0.2]
[1736972438277,0.30321192,100510.0,100500.0,0.20659071]
[1736972438477,0.30321192,100510.0,100500.0,0.25683435]
[1736972439355,0.40421192,100510.0,100500.0,0.25939435]
[1736972439556,0.30421192,100510.0,100500.0,0.15939435]
[1736972439903,0.30321192,100510.0,100500.0,0.20663435]
[1736972440088,0.30321192,100510.0,100500.0,0.20519435]
[1736972440214,0.30321192,100510.0,100500.0,0.21163435]
[1736972440889,0.30321192,100510.0,100500.0,0.20663435]
[1736972441318,0.30421192,100510.0,100500.0,0.20663435]
[1736972441545,0.30421192,100510.0,100500.0,0.15639071]
[1736972441763,0.30421192,100510.0,100500.0,0.04995071]
[1736972442387,0.30421192,100510.0,100500.0,0.05095071]
[1736972442610,0.30321192,100510.0,100500.0,0.05095071]
[1736972442814,0.30321192,100510.0,100500.0,0.10119435]
[1736972443022,0.30521192,100510.0,100500.0,0.10663435]
[1736972443250,0.30521192,100510.0,100500.0,0.10019435]
[1736972443251,0.31497613,100510.0,100500.0,0.10019435]
[1736972443481,0.31497613,100510.0,100500.0,0.10663435]
[1736972443667,0.31897613,100510.0,100500.0,0.10763435]
[1736972443866,0.31297613,100510.0,100500.0,0.10663435]
[1736972444284,0.31597613,100510.0,100500.0,0.10663435]
[1736972444491,0.31997613,100510.0,100500.0,0.10663435]
[1736972444693,0.31875395,100510.0,100500.0,0.10663435]
[1736972444890,0.2,100480.0,100470.0,0.1]
[1736972445100,0.49985418,100480.0,100470.0,0.20644]
[1736972445501,0.39985418,100480.0,100470.0,0.2]
[1736972445706,0.39985418,100480.0,100470.0,0.20644]
[1736972445908,0.49985418,100480.0,100470.0,0.20644]
[1736972446727,0.50085418,100480.0,100470.0,0.21544]
[1736972446937,0.50085418,100480.0,100470.0,0.21644]
[1736972447172,0.49985418,100480.0,100470.0,0.20744]
[1736972447378,0.49985418,100480.0,100470.0,0.21244]
[1736972447547,0.39985418,100480.0,100470.0,0.26218]
[1736972448434,0.09658326,100480.0,100470.0,0.56218]
[1736972449045,0.09658326,100480.0,100470.0,0.55574]
[1736972449277,0.09658326,100480.0,100470.0,0.56218]
[1736972449887,0.09658326,100480.0,100470.0,0.56397592]
[1736972450273,0.09743846,100480.0,100470.0,0.56397592]
[1736972450739,0.09743846,100480.0,100470.0,0.76303992]
[1736972450944,0.09743846,100480.0,100470.0,1.01968044]
[1736972450945,0.0008552,100480.0,100470.0,1.01968044]
[1736972451148,0.0008552,100480.0,100470.0,2.03368044]
[1736972451948,0.0008552,100480.0,100470.0,2.03268044]
[1736972452297,0.0008552,100480.0,100470.0,2.18768044]
[1736972453152,0.0008552,100480.0,100470.0,2.18268044]
[1736972453371,0.0018552,100480.0,100470.0,2.19168044]
[1736972453954,0.0018552,100480.0,100470.0,2.09168044]
[1736972454172,0.0018552,100480.0,100470.0,2.19168044]
[1736972454941,0.0018552,100480.0,100470.0,2.21558227]
[1736972455145,0.0018552,100480.0,100470.0,7.39993901]
[1736972455398,0.0018552,100480.0,100470.0,5.20393901]
[1736972455541,0.0018552,100480.0,100470.0,2.76993901]
[1736972457295,0.0018552,100480.0,100470.0,2.34349901]
[1736972457629,0.0018552,100480.0,100470.0,2.34993901]
[1736972459515,0.0018552,100480.0,100470.0,2.34652227]
[1736972460125,0.0018552,100480.0,100470.0,2.34993901]
[1736972460958,0.0018552,100480.0,100470.0,2.08585535]
[1736972461168,0.0018552,100480.0,100470.0,1.93984175]
[1736972461384,0.0018552,100480.0,100470.0,1.93982466]
[1736972461561,0.0018552,100480.0,100470.0,2.09013111]
[1736972461960,0.0018552,100480.0,100470.0,1.85434237]
[1736972462182,0.50295344,100480.0,100470.0,1.57953592]
[1736972462410,0.40512612,100480.0,100470.0,1.18593592]
[1736972462977,0.40412612,100480.0,100470.0,1.17193592]
[1736972463423,0.40512612,100480.0,100470.0,1.17993592]
[1736972463582,0.40412612,100480.0,100470.0,1.16553592]
[1736972463803,0.40412612,100480.0,100470.0,1.07193592]
[1736972464153,0.40412612,100480.0,100470.0,1.07693592]
[1736972464384,0.29562726,100480.0,100470.0,1.27893592]
[1736972464803,0.29562726,100480.0,100470.0,1.27693592]
[1736972465011,0.29562726,100480.0,100470.0,1.27053592]
[1736972465427,0.29562726,100480.0,100470.0,1.27693592]
[1736972465676,0.49985418,100480.0,100470.0,1.27693592]
[1736972466487,0.41599797,100480.0,100470.0,1.17053592]
[1736972466732,0.41599797,100480.0,100470.0,1.17693592]
[1736972467150,0.31599797,100480.0,100470.0,1.17693592]
[1736972467368,0.69368626,100490.0,100470.0,1.27693592]
[1736972467579,0.199028,100490.0,100470.0,1.47599992]
[1736972467776,0.09658326,100480.0,100470.0,1.67505192]
[1736972467930,0.199028,100490.0,100470.0,1.66865192]
[1736972468143,0.199028,100490.0,100470.0,1.67504292]
[1736972468345,0.09658326,100480.0,100470.0,1.47598792]
[1736972468544,0.09658326,100480.0,100470.0,1.27053592]
[1736972468872,0.39562726,100480.0,100470.0,1.27053592]
[1736972469067,0.40327092,100480.0,100470.0,1.27193592]
[1736972469274,0.09658326,100490.0,100470.0,1.27193592]
[1736972469440,0.10908153,100500.0,100480.0,0.828633]
[1736972469640,0.298995,100510.0,100500.0,0.2]
[1736972469861,0.298995,100510.0,100500.0,1.27014]
[1736972470826,0.198995,100510.0,100500.0,1.27029074]
[1736972471033,0.09658326,100510.0,100500.0,1.27029074]
[1736972471236,0.11958326,100510.0,100500.0,1.27029074]
[1736972471449,0.221985,100510.0,100500.0,1.27029074]
[1736972471657,0.321985,100510.0,100500.0,1.27029074]
[1736972472083,0.497908,100530.0,100520.0,0.1]
[1736972472287,0.31261134,100540.0,100520.0,0.5]
[1736972472494,0.60303772,100540.0,100530.0,1.0204]
[1736972472710,0.60303772,100540.0,100530.0,1.11014]
[1736972473352,0.30409872,100540.0,100530.0,1.11014]
[1736972473559,0.0009348,100540.0,100530.0,1.11014]
[1736972473770,0.1998598,100540.0,100530.0,1.11014]
[1736972474139,0.0009348,100540.0,100530.0,1.741685]
[1736972475621,0.0009348,100540.0,100530.0,1.738685]
[1736972475834,0.0009348,100540.0,100530.0,1.742685]
[1736972475975,0.0009348,100540.0,100530.0,1.751685]
[1736972476183,0.0009348,100540.0,100530.0,1.54374]
[1736972476642,0.0009348,100540.0,100530.0,1.751685]
[1736972482549,0.0009348,100540.0,100530.0,7.0657525]
[1736972482746,0.4985312,100590.0,100570.0,0.2]
[1736972482967,0.4985312,100590.0,100580.0,1.1204]
[1736972482968,0.0008552,100590.0,100580.0,1.1204]
[1736972483173,0.0008552,100590.0,100580.0,1.1604]
[1736972483377,0.0008552,100590.0,100580.0,1.659246]
[1736972483585,0.0008552,100590.0,100580.0,1.81321292]
[1736972483993,0.00135716,100590.0,100580.0,1.81321292]
[1736972484847,0.00135716,100590.0,100580.0,5.87191292]
[1736972485054,0.00135716,100590.0,100580.0,2.25981292]
[1736972485254,0.00135716,100590.0,100580.0,2.26381292]
[1736972485778,0.00135716,100590.0,100580.0,2.26681292]
[1736972486140,0.00135716,100590.0,100580.0,2.26481292]
[1736972486317,0.00135716,100590.0,100580.0,2.27381292]
[1736972488531,0.00135716,100590.0,100580.0,1.17254]
[1736972488732,0.29676642,100590.0,100580.0,1.27894]
[1736972489154,0.09794042,100590.0,100580.0,1.57894]
[1736972489559,0.09794042,100590.0,100580.0,1.848586]
[1736972489869,0.09794042,100590.0,100580.0,1.833686]
[1736972490083,0.00135716,100590.0,100580.0,1.840686]
[1736972490305,0.00135716,100590.0,100580.0,1.94491292]
[1736972490667,0.00135716,100590.0,100580.0,1.94481292]
[1736972491111,0.00135716,100590.0,100580.0,1.94381292]
[1736972491328,0.00135716,100590.0,100580.0,2.83181292]
[1736972491526,0.00135716,100590.0,100580.0,2.83481292]
[1736972492133,0.00135716,100590.0,100580.0,2.82781292]
[1736972492334,0.00135716,100590.0,100580.0,2.83681292]
[1736972493422,0.00135716,100590.0,100580.0,1.94241292]
[1736972493624,0.00135716,100590.0,100580.0,1.94885292]
[1736972493875,0.00135716,100590.0,100580.0,1.94241292]
[1736972494009,0.00135716,100590.0,100580.0,1.94885292]
[1736972494571,0.32715143,100600.0,100590.0,0.5]
[1736972494773,0.32715143,100600.0,100590.0,6.28256156]
[1736972494976,0.32715143,100600.0,100590.0,4.90638756]
[1736972495184,0.32715143,100600.0,100590.0,1.85638756]
[1736972495605,0.32715143,100600.0,100590.0,1.86328756]
[1736972495813,0.32715143,100600.0,100590.0,1.86828756]
[1736972496071,0.16715143,100600.0,100590.0,1.87728756]
[1736972496328,0.0752541,100600.0,100590.0,1.87728756]
[1736972496528,0.19918514,100630.0,100620.0,0.698767]
[1736972496733,0.19918514,100630.0,100620.0,1.83023392]
[1736972496973,0.19918514,100630.0,100620.0,1.91997392]
[1736972497201,0.19918514,100630.0,100620.0,1.91497392]
[1736972497409,0.19918514,100630.0,100620.0,1.91307392]
[1736972497840,0.19918514,100630.0,100620.0,7.99505429]
[1736972498094,0.19909546,100630.0,100620.0,8.17537103]
[1736972498327,0.19909546,100630.0,100620.0,3.14937103]
[1736972498511,0.19909546,100630.0,100620.0,2.99595429]
[1736972498639,0.19909546,100630.0,100620.0,3.00195429]
[1736972499077,0.19909546,100630.0,100620.0,2.99795429]
[1736972499300,23.96476381,100660.0,100650.0,0.5]
[1736972499507,23.86818055,100660.0,100650.0,1.57008]
[1736972499703,23.86818055,100660.0,100650.0,1.61008]
[1736972500424,23.47077155,100660.0,100650.0,1.61023074]
[1736972500662,23.66945955,100660.0,100650.0,1.61023074]
[1736972501684,23.66945955,100660.0,100650.0,1.61423074]
[1736972501881,23.66945955,100660.0,100650.0,1.60779074]
[1736972502097,23.66945955,100660.0,100650.0,1.61423074]
[1736972502731,23.66945955,100660.0,100650.0,1.60779074]
[1736972503140,23.85578647,100660.0,100650.0,1.10779074]
[1736972503341,23.85578647,100660.0,100650.0,1.06779074]
[1736972504598,23.77368647,100660.0,100650.0,1.27423074]
[1736972505029,23.66945955,100660.0,100650.0,1.27423074]
[1736972505499,23.47077155,100660.0,100650.0,1.27423074]
[1736972505846,23.47077155,100660.0,100650.0,1.57423074]
[1736972506866,23.47077155,100660.0,100650.0,1.87716566]
[1736972507545,23.47077155,100660.0,100650.0,1.87916566]
[1736972508405,23.47077155,100660.0,100650.0,1.87516566]
[1736972509228,23.47077155,100660.0,100650.0,1.88216566]
[1736972509437,23.47077155,100660.0,100650.0,1.87572566]
[1736972509581,23.47077155,100660.0,100650.0,1.88216566]
[1736972510542,23.47077155,100660.0,100650.0,1.88016566]
[1736972510893,23.47077155,100660.0,100650.0,1.88316566]
[1736972512129,23.47077155,100660.0,100650.0,1.88495843]
[1736972512339,23.47077155,100660.0,100650.0,2.01605843]
[1736972512490,23.47162525,100660.0,100650.0,2.01947517]
[1736972512702,23.47162525,100660.0,100650.0,2.01605843]
[1736972512903,23.47162525,100660.0,100650.0,3.53436046]
[1736972513138,23.47162525,100660.0,100650.0,3.32236046]
[1736972513305,23.47162525,100660.0,100650.0,2.67136046]
[1736972513708,23.47162525,100660.0,100650.0,2.32536046]
[1736972513907,23.47162525,100660.0,100650.0,7.37236046]
[1736972514107,23.47162525,100660.0,100650.0,7.37736046]
[1736972514375,23.47162525,100660.0,100650.0,7.32736046]
[1736972514577,23.47162525,100660.0,100650.0,7.31136046]
[1736972514786,23.47162525,100660.0,100650.0,7.32036046]
[1736972515712,23.47162525,100660.0,100650.0,3.92236046]
[1736972515887,23.47162525,100660.0,100650.0,2.58836046]
[1736972516152,23.47162525,100660.0,100650.0,2.58192046]
[1736972516365,23.77454017,100660.0,100650.0,1.17958351]
[1736972516898,23.77454017,100660.0,100650.0,1.18602351]
[1736972517113,23.77454017,100660.0,100650.0,1.17958351]
[1736972517321,23.77454017,100660.0,100650.0,1.18102351]
[1736972517686,23.77454017,100660.0,100650.0,1.17802351]
[1736972517906,23.77454017,100660.0,100650.0,1.08702351]
[1736972518110,23.77454017,100660.0,100650.0,1.07202351]
[1736972518555,23.77454017,100660.0,100650.0,1.07602351]
[1736972519201,23.77454017,100660.0,100650.0,1.07202351]
[1736972519408,23.77454017,100660.0,100650.0,1.06558351]
[1736972520215,23.72844017,100660.0,100650.0,1.06558351]
[1736972520891,23.72844017,100660.0,100650.0,1.00518721]
[1736972521144,23.74006829,100660.0,100650.0,1.00518721]
[1736972521794,23.74006829,100660.0,100650.0,0.94775764]
[1736972521992,23.78746829,100660.0,100650.0,0.94775764]
[1736972522613,23.78746829,100660.0,100650.0,0.927877]
[1736972522844,23.78746829,100660.0,100650.0,0.890027]
[1736972523235,23.78746829,100660.0,100650.0,0.773177]
[1736972524031,23.74006829,100660.0,100650.0,0.773177]
[1736972524782,23.63584137,100660.0,100650.0,0.973177]
[1736972524986,23.42552525,100660.0,100650.0,1.273177]
[1736972525937,23.62421325,100660.0,100650.0,1.273177]
[1736972526143,23.42552525,100660.0,100650.0,1.273177]
[1736972526740,23.62421325,100660.0,100650.0,1.279577]
[1736972526893,23.72844017,100660.0,100650.0,0.779577]
[1736972527068,23.72844017,100660.0,100650.0,0.781577]
[1736972527275,23.72844017,100660.0,100650.0,0.788577]
[1736972527831,23.72844017,100660.0,100650.0,0.780177]
[1736972527954,23.72844017,100660.0,100650.0,0.73098724]
[1736972528183,23.72844017,100660.0,100650.0,0.56818351]
[1736972528391,23.72844017,100660.0,100650.0,0.57218351]
[1736972528608,23.71444017,100660.0,100650.0,0.57218351]
[1736972528878,23.71444017,100660.0,100650.0,0.56261414]
[1736972529298,23.71444017,100660.0,100650.0,0.05168351]
[1736972531995,23.72893965,100660.0,100650.0,0.05168351]
[1736972532245,23.71444017,100660.0,100650.0,0.01138875]
[1736972532910,0.29533026,100630.0,100620.0,0.1]
[1736972533179,0.39955718,100630.0,100620.0,0.1]
[1736972533436,0.39955718,100630.0,100620.0,0.1064]
[1736972534498,0.39955718,100630.0,100620.0,0.1]
[1736972534747,0.39955718,100630.0,100620.0,0.1064]
[1736972534949,0.39955718,100630.0,100620.0,0.1]
[1736972535184,0.39955718,100630.0,100620.0,0.15164]
[1736972536143,0.39955718,100630.0,100620.0,0.04524]
[1736972536615,0.31426979,100630.0,100620.0,0.04524]
[1736972537597,0.33443515,100630.0,100620.0,0.04524]
[1736972539758,0.31426979,100630.0,100620.0,0.04024]
[1736972540017,0.31426979,100630.0,100620.0,0.00834]
[1736972541176,0.32462257,100630.0,100620.0,0.00834]
[1736972541474,0.31212257,100630.0,100620.0,0.00934]
[1736972541698,0.40870583,100630.0,100620.0,0.00934]
[1736972543119,0.40960583,100630.0,100620.0,0.00934]
[1736972543647,0.40860583,100630.0,100620.0,0.00834]
[1736972543881,0.20779565,100630.0,100620.0,0.00834]
[1736972544100,0.11035278,100630.0,100620.0,0.20834]
[1736972544314,0.1,100630.0,100620.0,0.20834]
[1736972544521,0.001,100630.0,100620.0,0.713507]
[1736972544736,0.001,100630.0,100620.0,0.792107]
[1736972544940,0.001,100630.0,100620.0,0.837507]
[1736972545153,0.001,100630.0,100620.0,1.09458859]
[1736972545368,0.001,100630.0,100620.0,2.16798859]
[1736972545580,0.001,100630.0,100620.0,1.78208859]
[1736972545806,0.29871,100650.0,100640.0,0.2]
[1736972546226,0.19871,100650.0,100640.0,0.2396]
[1736972546473,24.00777688,100660.0,100640.0,0.2396]
[1736972546653,23.92473197,100660.0,100650.0,0.5299]
[1736972547982,23.9132988,100660.0,100650.0,0.5299]
[1736972548101,23.9132988,100660.0,100650.0,0.54224]
[1736972548566,23.7145948,100660.0,100650.0,0.54224]
[1736972549605,23.41167588,100660.0,100650.0,0.94224]
[1736972549789,23.41167588,100660.0,100650.0,1.06624]
[1736972550398,23.41167588,100660.0,100650.0,1.05984]
[1736972550602,23.41167588,100660.0,100650.0,1.0662]
[1736972550811,23.41167588,100660.0,100650.0,1.264908]
[1736972551019,23.41167588,100660.0,100650.0,1.260908]
[1736972551222,23.41167588,100660.0,100650.0,1.0622]
[1736972551423,23.41167588,100660.0,100650.0,1.0692]
[1736972551637,23.41167588,100660.0,100650.0,1.0622]
[1736972552220,23.41167588,100660.0,100650.0,1.0712]
[1736972552427,23.41167588,100660.0,100650.0,1.269908]
[1736972552636,23.41167588,100660.0,100650.0,1.0732]
[1736972552842,23.61036388,100660.0,100650.0,1.0732]
[1736972553145,23.41167588,100660.0,100650.0,1.0712]
[1736972553588,23.61036388,100660.0,100650.0,0.76784]
[1736972553797,23.7145908,100660.0,100650.0,0.68924]
[1736972554008,23.7145908,100660.0,100650.0,0.6956]
[1736972554245,23.61036388,100660.0,100650.0,0.6956]
[1736972554981,23.7145908,100660.0,100650.0,0.6956]
[1736972555187,23.7145908,100660.0,100650.0,0.6502]
[1736972555605,23.7145908,100660.0,100650.0,0.64384]
[1736972555794,23.7145908,100660.0,100650.0,0.6502]
[1736972556875,23.7145908,100660.0,100650.0,0.6472]
[1736972557235,23.7145908,100660.0,100650.0,0.63184]
[1736972557428,23.7145908,100660.0,100650.0,0.6382]
[1736972557636,23.7145908,100660.0,100650.0,0.6422]
[1736972558470,23.61036388,100660.0,100650.0,0.6422]
[1736972558672,23.41167588,100660.0,100650.0,0.6422]
[1736972558880,23.41167588,100660.0,100650.0,1.217408]
[1736972559082,23.41167588,100660.0,100650.0,1.26832474]
[1736972559485,23.41167588,100660.0,100650.0,1.42338658]
[1736972559888,23.41167588,100660.0,100650.0,1.42638658]
[1736972560281,23.41167588,100660.0,100650.0,1.5276135]
[1736972560486,23.41167588,100660.0,100650.0,1.5236135]
[1736972560660,23.41167588,100660.0,100650.0,1.5266135]
[1736972560889,23.41167588,100660.0,100650.0,1.5346135]
[1736972561256,23.41167588,100660.0,100650.0,1.5266135]
[1736972561459,23.41167588,100660.0,100650.0,1.5356135]
[1736972564392,23.41167588,100660.0,100650.0,1.22631858]
[1736972564607,23.41167588,100660.0,100650.0,1.5356135]
[1736972565404,23.41167588,100660.0,100650.0,1.5292535]
[1736972565622,23.41167588,100660.0,100650.0,2.4296135]
[1736972565826,23.41167588,100660.0,100650.0,1.7306135]
[1736972566026,23.41167588,100660.0,100650.0,1.5356135]
[1736972566642,23.41167588,100660.0,100650.0,1.27632474]
[1736972567262,23.41167588,100660.0,100650.0,1.07761674]
[1736972567461,23.41167588,100660.0,100650.0,1.07125674]
[1736972567628,23.61036388,100660.0,100650.0,1.07761674]
[1736972568012,23.41167588,100660.0,100650.0,1.07761674]
[1736972568213,23.41167588,100660.0,100650.0,1.54035109]
[1736972568419,23.41167588,100660.0,100650.0,1.49035109]
[1736972568626,23.41067588,100660.0,100650.0,1.22632474]
[1736972569080,23.41067588,100660.0,100650.0,1.02761674]
[1736972569905,23.41067588,100660.0,100650.0,1.02125674]
[1736972570119,23.41067588,100660.0,100650.0,1.02761674]
[1736972570484,23.41067588,100660.0,100650.0,1.02125674]
[1736972570693,23.41067588,100660.0,100650.0,0.62761674]
[1736972570933,23.41067588,100660.0,100650.0,1.02761674]
[1736972571136,23.41067588,100660.0,100650.0,0.62761674]
[1736972571371,23.60936388,100660.0,100650.0,1.02761674]
[1736972571577,23.60936388,100660.0,100650.0,0.99384]
[1736972571784,23.60936388,100660.0,100650.0,1.0002]
[1736972572372,23.7135908,100660.0,100650.0,0.69384]
[1736972572575,23.7135908,100660.0,100650.0,0.7002]
[1736972573192,23.7135908,100660.0,100650.0,0.6972]
[1736972573392,23.7135908,100660.0,100650.0,0.69084]
[1736972573606,23.7135908,100660.0,100650.0,0.6972]
[1736972573813,23.7135908,100660.0,100650.0,0.6882]
[1736972574671,23.7135908,100660.0,100650.0,0.6922]
[1736972575105,23.72396019,100660.0,100650.0,0.6922]
[1736972576145,23.7351359,100660.0,100650.0,0.6922]
[1736972576489,23.7351359,100660.0,100650.0,0.5922]
[1736972576711,23.6351359,100660.0,100650.0,0.5922]
[1736972578118,23.6351359,100660.0,100650.0,0.59272]
[1736972578328,23.7351359,100660.0,100650.0,0.49272]
[1736972579384,23.7351359,100660.0,100650.0,0.48636]
[1736972579592,23.7351359,100660.0,100650.0,0.48872]
[1736972580646,23.72476651,100660.0,100650.0,0.48872]
[1736972581078,23.72576651,100660.0,100650.0,0.48872]
[1736972585812,23.72576651,100660.0,100650.0,0.48236]
[1736972585813,23.57576651,100660.0,100650.0,0.48236]
[1736972586038,23.57576651,100660.0,100650.0,0.2641407]
[1736972586248,23.57576651,100660.0,100650.0,0.00886]
[1736972587078,23.57476651,100660.0,100650.0,0.00886]
[1736972587537,23.57876651,100660.0,100650.0,0.00986]
[1736972588390,0.46829126,100650.0,100640.0,0.00636]
[1736972588591,0.39951818,100650.0,100640.0,0.00636]
[1736972588988,0.173,100640.0,100630.0,0.00179613]
[1736972589124,0.47719738,100640.0,100630.0,0.00815613]
[1736972589356,0.47595492,100640.0,100630.0,0.00815613]
[1736972590321,0.47595492,100640.0,100630.0,0.05789613]
[1736972590932,0.47595492,100640.0,100630.0,0.05153613]
[1736972591128,0.47595492,100640.0,100630.0,0.05789613]
[1736972591500,0.47695492,100640.0,100630.0,0.05789613]
[1736972591699,0.57353818,100640.0,100630.0,0.05153613]
[1736972591897,0.57353818,100640.0,100630.0,0.05789613]
[1736972592105,0.47695492,100640.0,100630.0,0.03623296]
[1736972592322,0.47695492,100640.0,100630.0,0.02977769]
[1736972593156,0.48095492,100640.0,100630.0,0.02977769]
[1736972593407,0.58518184,100640.0,100630.0,0.02977769]
[1736972593670,0.44533026,100630.0,100620.0,0.00179592]
[1736972593916,0.173,100620.0,100610.0,0.00636]
[1736972594150,0.221787,100610.0,100600.0,0.1]
[1736972594407,0.32601392,100610.0,100600.0,0.10636]
[1736972595065,0.1,100600.0,100580.0,0.62787098]
[1736972595273,0.20546975,100590.0,100580.0,0.42787098]
[1736972595488,0.00124283,100590.0,100580.0,0.99092679]
[1736972595724,0.11110528,100630.0,100620.0,0.1]
[1736972595961,0.21548304,100630.0,100620.0,0.19436]